bitfinex-derivatives/quotes_SOLF0:USTF0_20251230
["timestamp","ask_amount","ask_price","bid_price","bid_amount"]
[1767102569080,10.4328,124.42,124.36,105.94848408]
[1767102569287,0.05096929,124.4,124.38,0.05405475]
[1767102571298,10.48506929,124.4,124.35,7.52848408]
[1767102571487,10.48506929,124.4,124.34,10.88848408]
[1767102571687,3.24096929,124.4,124.34,3.36]
[1767102571889,3.24096929,124.4,124.34,10.88848408]
[1767102572086,3.24096929,124.4,124.35,3.36]
[1767102572291,0.05096929,124.4,124.36,3.41702876]
[1767102572790,0.05096929,124.4,124.36,10.94551284]
[1767102574598,7.29496929,124.4,124.36,3.41702876]
[1767102577202,0.05096929,124.4,124.36,3.41702876]
[1767102577499,0.05096929,124.4,124.37,3.36]
[1767102583202,0.00096929,124.4,124.37,3.36]
[1767102583403,0.00096929,124.4,124.38,3.36]
[1767102585202,0.00096929,124.4,124.38,10.88848408]
[1767102585790,0.00096929,124.4,124.37,7.52848408]
[1767102586298,0.00096929,124.4,124.37,10.89848408]
[1767102603015,0.00096929,124.4,124.38,3.47]
[1767102604616,0.00096929,124.4,124.38,10.99848408]
[1767102607918,0.00096929,124.4,124.38,7.52848408]
[1767102608119,0.00096929,124.4,124.37,7.52848408]
[1767102608418,0.00096929,124.4,124.37,3.47]
[1767102610318,0.00096929,124.4,124.37,10.99848408]
[1767102617520,3.48096929,124.4,124.37,7.52848408]
[1767102617726,3.48096929,124.4,124.36,7.58551284]
[1767102619326,3.48096929,124.4,124.36,0.05702876]
[1767102628836,3.48,124.39,124.36,0.05702876]
[1767102631843,7.24496929,124.4,124.36,0.05702876]
[1767102632141,10.72496929,124.4,124.36,0.05702876]
[1767102633738,3.48096929,124.4,124.36,0.05702876]
[1767102633931,10.7246,124.39,124.36,0.05702876]
[1767102634540,0.00096929,124.4,124.36,0.05702876]
[1767102634739,0.00096929,124.4,124.36,3.54702876]
[1767102637647,10.72496929,124.4,124.36,0.05702876]
[1767102639054,3.48,124.38,124.33,10.04375431]
[1767102639243,3.48,124.38,124.32,10.04375431]
[1767102639552,1.42,124.35,124.3,13.53375431]
[1767102639745,1.42,124.35,124.3,3.49]
[1767102640046,0.06173158,124.34,124.31,0.05391688]
[1767102644555,1.48173158,124.34,124.31,0.05391688]
[1767102645456,8.72933158,124.34,124.31,0.05391688]
[1767102647462,1.48173158,124.34,124.31,0.05391688]
[1767102647850,1.37,124.32,124.25,3.36]
[1767102648855,0.05130575,124.3,124.27,0.06198462]
[1767102650851,8.6178,124.34,124.27,3.42198462]
[1767102651056,1.37,124.34,124.27,3.42198462]
[1767102652064,0.05209648,124.32,124.27,3.42198462]
[1767102662072,10.73287413,124.36,124.28,3.42]
[1767102662876,8.7167,124.36,124.28,3.42]
[1767102663073,0.05552853,124.33,124.31,0.055363]
[1767102665062,0.05552853,124.33,124.28,3.42]
[1767102665266,1.52552853,124.33,124.28,3.42]
[1767102665670,1.52552853,124.33,124.26,3.42]
[1767102665868,1.47,124.33,124.26,3.42]
[1767102666176,0.05876089,124.31,124.28,0.05216203]
[1767102690490,1.52876089,124.31,124.28,0.05216203]
[1767102691288,1.47,124.3,124.25,13.36375431]
[1767102691488,1.47,124.3,124.25,3.32]
[1767102692386,1.47,124.3,124.26,0.06136431]
[1767102692587,8.72,124.3,124.26,0.06136431]
[1767102701491,1.41,124.24,124.18,3.32]
[1767102702403,0.05911623,124.22,124.2,0.059694]
[1767102705000,7.2528,124.25,124.2,3.379694]
[1767102706004,0.05679025,124.24,124.2,3.379694]
[1767102714125,8.7221,124.26,124.2,3.379694]
[1767102715123,0.05273582,124.24,124.2,3.379694]
[1767102719921,8.7809,124.28,124.22,3.35]
[1767102720126,7.2509,124.28,124.22,3.35]
[1767102720325,8.8309,124.28,124.22,3.35]
[1767102721124,0.05725536,124.26,124.24,0.05366175]
[1767102728028,0.05725536,124.26,124.2,3.35]
[1767102728029,8.88935536,124.26,124.2,3.35]
[1767102728226,1.63725536,124.26,124.2,3.35]
[1767102729031,1.63725536,124.26,124.22,0.05366456]
[1767102729529,1.63725536,124.26,124.2,3.35]
[1767102729732,8.8327,124.25,124.2,3.35]
[1767102730434,8.8327,124.25,124.21,0.05337325]
[1767102737639,1.58,124.25,124.21,0.05337325]
[1767102738238,7.30935536,124.26,124.21,3.57337325]
[1767102741738,0.05725536,124.26,124.21,3.57337325]
[1767102750048,1.63725536,124.26,124.21,3.57337325]
[1767102750356,1.63725536,124.26,124.21,0.05337325]
[1767102751647,8.8328,124.25,124.21,0.05337325]
[1767102758564,8.8328,124.25,124.21,3.57337325]
[1767102759062,7.2528,124.25,124.21,3.57337325]
[1767102760760,1.63725536,124.26,124.21,3.57337325]
[1767102763661,1.63725536,124.26,124.21,10.82817325]
[1767102768362,1.63725536,124.26,124.22,3.39]
[1767102768563,0.05725536,124.26,124.22,3.39]
[1767102777264,2.01835211,124.25,124.21,7.30817325]
[1767102777469,2.01835211,124.25,124.21,10.69817325]
[1767102780580,2.01835211,124.25,124.22,3.39]
[1767102781478,1.63725536,124.26,124.22,3.39]
[1767102784881,0.05725536,124.26,124.22,3.39]
[1767102787476,7.30955536,124.26,124.22,3.39]
[1767102787673,2.01835211,124.25,124.22,3.39]
[1767102790383,2.07560747,124.26,124.22,3.39]
[1767102791279,0.05725536,124.26,124.22,3.39]
[1767102816996,2.07560747,124.26,124.22,3.39]
[1767102819602,3.92560747,124.26,124.22,3.39]
[1767102819793,2.07560747,124.26,124.22,3.39]
[1767102820394,112.7531,124.33,124.23,3.32]
[1767102820589,2.01835211,124.3,124.23,3.32]
[1767102821498,2.01835211,124.3,124.26,3.32]
[1767102822602,0.05820544,124.29,124.26,3.32]
[1767102827401,7.2485,124.33,124.26,3.32]
[1767102827607,2.01835211,124.32,124.26,3.32]
[1767102828410,2.07800111,124.3,124.28,0.06045761]
[1767102828610,2.07800111,124.3,124.26,3.32]
[1767102829008,0.059649,124.3,124.26,3.32]
[1767102829511,0.059649,124.3,124.27,0.05528361]
[1767102832012,0.059649,124.3,124.27,3.74528361]
[1767102832215,6.25145845,124.34,124.27,3.74528361]
[1767102832418,2.01835211,124.33,124.27,3.74528361]
[1767102832913,9.26665211,124.33,124.27,3.74528361]
[1767102833309,0.05133656,124.31,124.27,3.74528361]
[1767102855242,3.61145845,124.34,124.27,3.74528361]
[1767102856339,0.0029008,124.32,124.27,3.74528361]
[1767102856538,0.0029008,124.32,124.27,10.99668361]
[1767102856741,0.0029008,124.32,124.28,4.18]
[1767102860447,0.0029008,124.32,124.28,11.4309]
[1767102860634,0.0029008,124.32,124.29,4.18]
[1767102861442,7.2463,124.36,124.3,4.18]
[1767102861638,3.15111641,124.38,124.3,4.18]
[1767102861942,98.86,124.39,124.3,4.18]
[1767102862141,98.86,124.39,124.32,4.18]
[1767102862335,3.76,124.38,124.32,4.18]
[1767102862536,3.76,124.38,124.34,0.05336752]
[1767102863536,11.0051,124.38,124.34,0.05336752]
[1767102875541,3.99,124.4,124.34,4.23336752]
[1767102875762,99.09,124.42,124.34,4.23336752]
[1767102876055,3.99,124.41,124.37,0.0589628]
[1767102876949,4.0,124.43,124.37,4.2389628]
[1767102878555,11.2424,124.43,124.37,4.2389628]
[1767102878754,4.04,124.42,124.37,4.2389628]
[1767102889772,99.32,124.44,124.37,4.2389628]
[1767102890173,4.22,124.43,124.37,4.2389628]
[1767102893370,4.27,124.42,124.37,4.2389628]
[1767102893965,4.27,124.42,124.37,0.0589628]
[1767102896476,6.2838286,124.42,124.37,0.0589628]
[1767102899981,4.35,124.41,124.37,0.0589628]
[1767102902484,4.35,124.41,124.37,4.7789628]
[1767102902885,2.0138286,124.42,124.37,4.7789628]
[1767102903482,6.4138286,124.42,124.37,4.7789628]
[1767102903675,13.6555286,124.44,124.37,4.7789628]
[1767102903880,4.4,124.44,124.38,4.72]
[1767102904079,6.4138286,124.44,124.4,0.05923513]
[1767102904285,4.4,124.43,124.4,0.05923513]
[1767102904481,6.4138286,124.43,124.4,0.05923513]
[1767102905190,4.4,124.42,124.36,11.9657]
[1767102905587,4.4,124.42,124.37,4.72]
[1767102906093,4.4,124.42,124.34,2.0138286]
[1767102906094,6.3838286,124.41,124.35,4.72]
[1767102906288,0.05923513,124.39,124.37,0.06144919]
[1767102918806,7.2428,124.42,124.37,4.64144919]
[1767102919106,11.8328,124.42,124.37,4.64144919]
[1767102919803,4.59,124.42,124.37,4.64144919]
[1767102923209,4.59,124.42,124.37,11.88714919]
[1767102923409,4.59,124.42,124.37,4.64144919]
[1767102926112,4.59,124.44,124.37,4.64144919]
[1767102926304,11.8316,124.44,124.38,4.58]
[1767102926509,11.8316,124.44,124.4,0.05691034]
[1767102926710,4.59,124.43,124.4,0.05691034]
[1767102931322,4.59,124.43,124.38,4.58]
[1767102931922,4.59,124.43,124.36,9.2601286]
[1767102932113,4.59,124.42,124.37,4.58]
[1767102932317,0.0525252,124.41,124.38,0.0555794]
[1767102933226,4.6425252,124.41,124.38,0.0555794]
[1767102955245,11.8859252,124.41,124.38,0.0555794]
[1767102955441,4.96,124.4,124.35,4.9]
[1767102956441,4.96,124.4,124.36,0.05701442]
[1767102956636,4.97,124.39,124.36,0.05701442]
[1767102958849,12.2145,124.39,124.36,0.05701442]
[1767102960743,4.9125252,124.41,124.36,0.05701442]
[1767102960956,4.9125252,124.41,124.36,4.96701442]
[1767102962546,0.0525252,124.41,124.36,4.96701442]
[1767102964448,0.0525252,124.41,124.36,12.21321442]
[1767102965150,0.0525252,124.41,124.37,4.91]
[1767102969950,4.9125252,124.41,124.36,0.05701442]
[1767102970354,4.9125252,124.41,124.36,4.96701442]
[1767102973055,4.9125252,124.41,124.36,0.05701442]
[1767102973865,4.86,124.4,124.33,4.91]
[1767102974959,0.06070695,124.38,124.35,0.05688171]
[1767102975757,0.00070695,124.38,124.35,4.96688171]
[1767102994771,8.12670973,124.44,124.35,4.96688171]
[1767102994971,4.98,124.46,124.38,5.22]
[1767102995774,0.05812175,124.43,124.41,0.05528927]
[1767103003776,5.03812175,124.43,124.39,5.22]
[1767103004079,4.98,124.42,124.36,5.22]
[1767103004874,0.05365785,124.4,124.38,0.05565546]
[1767103006075,4.98,124.42,124.38,0.05565546]
[1767103006281,4.83,124.44,124.38,4.96565546]
[1767103007185,0.06077233,124.42,124.38,4.96565546]
[1767103020491,0.00077233,124.42,124.38,4.96565546]
[1767103023285,7.2411,124.45,124.39,4.93]
[1767103024292,0.0496563,124.43,124.41,0.05488744]
[1767103026498,0.0496563,124.43,124.41,4.98488744]
[1767103027194,7.2411,124.45,124.41,4.98488744]
[1767103028288,12.0011,124.45,124.41,0.05488744]
[1767103028495,14.01425161,124.45,124.41,0.05488744]
[1767103041118,12.0616,124.44,124.41,0.05488744]
[1767103041417,2.01315161,124.43,124.39,12.42370421]
[1767103042319,0.05488744,124.42,124.4,0.05672121]
[1767103048114,0.05488744,124.42,124.37,17.50732615]
[1767103048115,12.11768744,124.42,124.37,17.50732615]
[1767103048319,12.11768744,124.42,124.36,12.17370421]
[1767103049217,12.11768744,124.42,124.38,0.06132212]
[1767103051514,0.05488744,124.42,124.38,4.74132212]
[1767103054222,0.05488744,124.42,124.38,12.23502633]
[1767103054823,0.05488744,124.42,124.38,4.74132212]
[1767103056414,4.87488744,124.42,124.38,0.06132212]
[1767103057719,12.11768744,124.42,124.38,0.06132212]
[1767103060828,12.11768744,124.42,124.38,4.74132212]
[1767103063332,4.87488744,124.42,124.38,4.74132212]
[1767103064829,0.05488744,124.42,124.38,4.74132212]
[1767103066032,4.89488744,124.42,124.38,4.74132212]
[1767103066233,4.89488744,124.42,124.38,0.06132212]
[1767103066531,6.90803905,124.42,124.38,0.06132212]
[1767103066828,4.83,124.41,124.38,0.06132212]
[1767103086040,0.05488744,124.42,124.38,4.67132212]
[1767103086240,4.74,124.45,124.39,4.61]
[1767103086450,4.74,124.45,124.39,12.10370421]
[1767103086948,4.74,124.45,124.39,4.61]
[1767103087248,0.05358395,124.43,124.41,0.05559007]
[1767103089149,4.73,124.42,124.37,19.34900421]
[1767103090041,4.73,124.42,124.38,0.06147554]
[1767103095454,0.05358395,124.43,124.38,4.67147554]
[1767103095653,4.70358395,124.43,124.38,4.67147554]
[1767103096448,11.94598395,124.43,124.38,0.06147554]
[1767103096659,4.62,124.42,124.38,0.06147554]
[1767103121283,11.8628,124.42,124.38,0.06147554]
[1767103121577,4.61,124.41,124.32,20.02567276]
[1767103121780,3.14595297,124.4,124.32,4.96]
[1767103121976,7.2452,124.38,124.31,4.96]
[1767103122784,0.06138162,124.36,124.33,0.05230337]
[1767103131694,7.30778162,124.36,124.33,0.00230337]
[1767103132095,0.06138162,124.36,124.33,0.00230337]
[1767103133593,7.247,124.35,124.33,0.00230337]
[1767103133791,0.06138162,124.36,124.33,0.00230337]
[1767103135604,7.30768162,124.36,124.33,0.00230337]
[1767103141198,7.2451,124.39,124.33,0.00230337]
[1767103141404,7.2451,124.39,124.33,4.97230337]
[1767103141802,7.2451,124.39,124.33,0.00230337]
[1767103142006,9.26021149,124.39,124.33,0.00230337]
[1767103142311,0.05956826,124.37,124.33,0.00230337]
[1767103142902,7.30526826,124.37,124.33,0.00230337]
[1767103143807,9.32037975,124.37,124.33,0.00230337]
[1767103144708,7.2463,124.36,124.33,0.00230337]
[1767103148108,7.247,124.35,124.29,4.97]
[1767103149112,0.0543338,124.33,124.31,0.06019473]
[1767103156417,0.0543338,124.33,124.27,5.37]
[1767103157517,0.0543338,124.33,124.29,0.05414902]
[1767103158819,7.3024338,124.33,124.29,0.05414902]
[1767103159914,0.0543338,124.33,124.29,0.05414902]
[1767103162317,0.0543338,124.33,124.29,5.42414902]
[1767103164418,7.2468,124.36,124.31,5.37]
[1767103164723,9.26191149,124.36,124.31,5.37]
[1767103165522,0.05186289,124.35,124.32,0.06078668]
[1767103166115,7.29876289,124.35,124.32,0.06078668]
[1767103169823,7.29876289,124.35,124.32,5.43078668]
[1767103170720,7.29876289,124.35,124.32,0.06078668]
[1767103198653,9.26261149,124.34,124.28,5.44]
[1767103198847,7.2475,124.34,124.28,5.44]
[1767103199038,9.26261149,124.34,124.28,5.44]
[1767103199646,0.0606695,124.32,124.3,0.05431988]
[1767103201952,0.0606695,124.32,124.26,19.2921376]
[1767103201953,7.3095695,124.32,124.26,10.02552611]
[1767103202153,0.0606695,124.32,124.26,5.44]
[1767103202456,7.2492,124.31,124.24,15.46552611]
[1767103202645,115.91449665,124.32,124.24,5.44]
[1767103203045,0.05391386,124.29,124.24,5.44]
[1767103204144,0.05391386,124.29,124.25,0.05999406]
[1767103204547,7.30431386,124.29,124.25,0.05999406]
[1767103207661,0.05391386,124.29,124.25,5.49999406]
[1767103208358,7.30431386,124.29,124.25,0.05999406]
[1767103210261,7.251,124.28,124.21,5.44]
[1767103211062,0.05570011,124.26,124.23,0.05398406]
[1767103221963,0.05570011,124.26,124.2,5.52]
[1767103222260,3.15209665,124.24,124.16,5.52]
[1767103222663,3.15209665,124.27,124.17,5.52]
[1767103222864,98.29209665,124.27,124.17,5.52]
[1767103223062,0.05653578,124.23,124.21,0.05799571]
[1767103223362,211.06319665,124.31,124.21,5.57799571]
[1767103223562,211.06319665,124.31,124.21,5.52]
[1767103224366,0.06181359,124.27,124.25,0.06110511]
[1767103228361,0.06181359,124.27,124.2,12.7753]
[1767103228677,3.21391024,124.27,124.2,5.52]
[1767103229356,3.21391024,124.27,124.22,0.05513446]
[1767103229357,10.46551024,124.27,124.22,0.05513446]
[1767103229864,7.2521,124.26,124.22,0.05513446]
[1767103231071,7.2528,124.25,124.22,0.05513446]
[1767103231276,7.2528,124.25,124.17,5.52]
[1767103232265,7.2528,124.25,124.16,98.31209665]
[1767103232266,0.06036383,124.22,124.2,0.05708505]
[1767103241889,0.06036383,124.22,124.16,5.52]
[1767103242587,7.31486383,124.22,124.16,5.52]
[1767103242989,7.31486383,124.22,124.18,0.054302]
[1767103253390,0.06036383,124.22,124.14,5.98]
[1767103253593,115.99349665,124.23,124.14,5.98]
[1767103253899,95.2,124.22,124.14,5.98]
[1767103255091,7.31263315,124.19,124.14,5.98]
[1767103255690,7.31263315,124.19,124.15,0.05397897]
[1767103256891,0.05643315,124.19,124.15,0.05397897]
[1767103258296,7.31283315,124.19,124.15,0.05397897]
[1767103260395,7.2569,124.18,124.15,0.05397897]
[1767103261994,0.05643315,124.19,124.15,5.95397897]
[1767103261995,7.31263315,124.19,124.15,5.95397897]
[1767103265300,0.05643315,124.19,124.15,5.95397897]
[1767103272103,0.05643315,124.19,124.15,0.05397897]
[1767103272309,0.05643315,124.19,124.15,5.95397897]
[1767103275108,35.15323645,124.42,124.15,5.95397897]
[1767103275109,112.8208,124.25,124.17,5.9]
[1767103275310,2.24517828,124.24,124.17,5.9]
[1767103276211,0.05447615,124.22,124.19,0.05421369]
[1767103278716,7.30897615,124.22,124.19,0.05421369]
[1767103299638,120.1626,124.16,124.1,9.332e-05]
[1767103299835,112.9294,124.13,124.06,15.07816437]
[1767103300039,95.2,124.12,124.05,6.44]
[1767103300247,120.1765,124.15,124.05,6.44]
[1767103300539,5.93089911,124.14,124.05,6.44]
[1767103300724,0.06103891,124.11,124.09,0.05469944]
[1767103302434,0.06103891,124.11,124.01,113.0339]
[1767103302634,2.24517828,124.1,124.03,6.44]
[1767103303228,112.9674,124.09,123.99,2.24517828]
[1767103303545,2.24517828,124.07,123.99,2.24517828]
[1767103303732,0.05991533,124.05,124.03,0.05222108]
[1767103304032,0.05991533,124.05,123.99,2.24517828]
[1767103304232,208.1972,124.08,123.99,2.24517828]
[1767103304430,2.24517828,124.07,123.99,2.24517828]
[1767103304630,208.1972,124.08,123.99,2.24517828]
[1767103304826,0.05521302,124.05,123.99,2.24517828]
[1767103305234,0.05521302,124.05,123.98,6.44]
[1767103305543,97.48517828,124.08,124.01,6.44]
[1767103306440,0.05603535,124.06,124.03,0.06140374]
[1767103308432,7.2612,124.11,124.03,6.55140374]
[1767103308637,95.26,124.09,124.03,6.49]
[1767103308834,7.2601,124.13,124.05,6.49]
[1767103309033,97.50517828,124.13,124.06,8.73517828]
[1767103309234,97.50517828,124.13,124.06,6.49]
[1767103309536,0.05477937,124.11,124.08,0.05229206]
[1767103310637,2.24517828,124.09,124.04,6.49]
[1767103310937,95.26,124.1,124.04,6.49]
[1767103311143,112.9231,124.14,124.04,6.49]
[1767103311343,2.24517828,124.1,124.04,6.49]
[1767103311537,0.05491104,124.08,124.06,0.06140604]
[1767103313846,0.00491104,124.08,124.06,0.06140604]
[1767103314338,2.25008932,124.08,124.04,6.49]
[1767103314743,2.25008932,124.08,123.99,208.3339]
[1767103314744,2.25008932,124.08,124.02,6.49]
[1767103314938,2.24517828,124.06,124.0,6.49]
[1767103315338,0.05247672,124.04,124.02,0.05445003]
[1767103316942,0.05247672,124.04,124.02,0.00445003]
[1767103317348,0.00247672,124.04,124.02,6.49445003]
[1767103317533,116.95184809,124.14,124.02,6.49445003]
[1767103317534,2.24517828,124.09,124.02,6.49445003]
[1767103317742,116.95184809,124.14,124.04,6.49]
[1767103317743,2.24517828,124.11,124.04,6.49]
[1767103318244,208.2217,124.12,124.04,6.49]
[1767103318439,2.24517828,124.1,124.04,6.49]
[1767103318640,0.05889448,124.09,124.07,0.05857419]
[1767103319047,2.24517828,124.12,124.07,0.05857419]
[1767103319648,9.50597828,124.12,124.07,0.05857419]
[1767103320249,0.05796612,124.11,124.07,0.05857419]
[1767103321944,0.05796612,124.11,124.07,7.73857419]
[1767103322844,6.27662637,124.14,124.08,7.68]
[1767103323655,2.24517828,124.12,124.06,7.68]
[1767103323855,0.05204302,124.1,124.08,0.06078622]
[1767103326244,0.05204302,124.1,124.04,7.68]
[1767103327350,0.05204302,124.1,124.06,0.0583994]
[1767103327550,7.2622,124.09,124.06,0.0583994]
[1767103328257,0.05204302,124.1,124.06,0.0583994]
[1767103328457,0.05204302,124.1,124.06,7.7383994]
[1767103332162,0.05204302,124.1,124.06,0.0583994]
[1767103332365,7.31374302,124.1,124.06,0.0583994]
[1767103332758,7.31374302,124.1,124.04,7.68]
[1767103333460,0.05204302,124.1,124.04,7.68]
[1767103333865,0.05204302,124.1,124.06,0.05779106]
[1767103336364,7.31354302,124.1,124.06,0.05779106]
[1767103336567,0.05204302,124.1,124.04,7.68]
[1767103336866,0.05204302,124.1,124.02,8.12]
[1767103336867,3.51284274,124.09,124.02,8.12]
[1767103337158,98.81284274,124.09,124.02,8.12]
[1767103337564,0.05186739,124.07,124.02,8.12]
[1767103339040,3.56471013,124.07,124.02,8.12]
[1767103339362,3.56471013,124.07,124.0,8.12]
[1767103339561,0.0608836,124.05,124.0,8.12]
[1767103339966,0.0608836,124.05,124.01,8.12]
[1767103342656,0.0608836,124.05,123.99,8.12]
[1767103342866,0.05120463,124.03,123.99,8.12]
[1767103344963,7.31680463,124.03,123.96,7.2694]
[1767103345259,0.05838877,124.01,123.96,8.12]
[1767103346673,7.32518877,124.01,123.96,8.12]
[1767103346973,3.57123151,124.01,123.94,8.12]
[1767103347374,0.05838877,124.01,123.94,8.12]
[1767103348273,0.05838877,124.01,123.96,8.12]
[1767103348567,0.0572475,124.0,123.96,8.12]
[1767103348764,0.0572475,124.0,123.94,8.12]
[1767103349072,3.51284274,123.97,123.91,12.24721563]
[1767103349265,0.05400428,123.95,123.91,12.24721563]
[1767103349666,95.32,123.94,123.91,2.091e-05]
[1767103349868,95.32,123.94,123.87,8.12]
[1767103350066,0.06180907,123.92,123.87,8.12]
[1767103351374,0.06180907,123.92,123.83,116.71304274]
[1767103351375,3.51284274,123.9,123.83,8.12]
[1767103351770,0.05323664,123.88,123.83,8.12]
[1767103352271,3.51284274,123.86,123.79,8.12]
[1767103352465,0.05803929,123.84,123.79,8.12]
[1767103353583,9.82888339,123.94,123.81,8.12]
[1767103353782,208.4716,123.93,123.81,8.12]
[1767103353977,113.1222,123.92,123.81,8.12]
[1767103354170,102.6324,123.92,123.81,8.12]
[1767103354371,215.7539,123.92,123.81,8.12]
[1767103354571,0.0516105,123.88,123.85,0.05511047]
[1767103354770,95.36,123.92,123.85,8.17511047]
[1767103356078,0.05963201,123.9,123.85,8.17511047]
[1767103356274,0.05963201,123.9,123.85,0.05511047]
[1767103357286,0.05963201,123.9,123.8,8.12]
[1767103357287,113.20163201,123.9,123.8,8.12]
[1767103357489,120.423,123.89,123.8,8.12]
[1767103357681,95.4,123.88,123.8,8.12]
[1767103358083,95.4,123.9,123.8,8.12]
[1767103358379,95.4,123.9,123.84,0.05213978]
[1767103358681,95.4,123.92,123.84,8.17213978]
[1767103358882,95.4,123.92,123.84,8.12]
[1767103359280,0.05281042,123.89,123.87,0.0597164]
[1767103360381,7.2715,123.93,123.87,0.0597164]
[1767103360576,95.4,123.94,123.87,8.1797164]
[1767103361375,120.4264,123.89,123.79,8.12]
[1767103361575,113.1336,123.91,123.79,8.12]
[1767103361785,95.42,123.9,123.79,8.12]
[1767103361986,7.2736,123.9,123.79,8.12]
[1767103362283,0.00171081,123.86,123.83,8.17516528]
[1767103362580,95.42,123.89,123.83,8.12]
[1767103362880,130.22288339,123.92,123.83,8.12]
[1767103363081,95.42,123.91,123.83,8.12]
[1767103363380,0.05698197,123.88,123.86,0.0527507]
[1767103364787,95.42,123.87,123.8,8.12]
[1767103365871,0.05159855,123.85,123.82,0.05980833]
[1767103368283,113.23659855,123.85,123.78,10.12]
[1767103368502,208.625,123.85,123.72,218.56668339]
[1767103368684,113.203,123.83,123.72,17.11228339]
[1767103368881,208.625,123.85,123.72,17.11228339]
[1767103368882,113.185,123.85,123.73,113.2943]
[1767103369378,0.00165722,123.8,123.78,0.05522551]
[1767103369590,208.6023,123.88,123.76,95.44]
[1767103369887,7.2758,123.86,123.76,95.44]
[1767103370483,0.0585241,123.82,123.8,0.05774941]
[1767103370685,0.05730479,123.82,123.8,0.05774941]
[1767103370983,95.44,123.88,123.8,0.05774941]
[1767103371187,95.44,123.88,123.8,10.12]
[1767103371380,113.1263,123.92,123.81,10.12]
[1767103371381,208.599,123.9,123.81,10.12]
[1767103371781,0.05460872,123.87,123.84,0.05892195]
[1767103372394,95.46,123.92,123.84,10.17892195]
[1767103372589,95.46,123.92,123.84,10.12]
[1767103373387,0.05959845,123.89,123.87,0.0596851]
[1767103374894,7.2706,123.95,123.87,0.0596851]
[1767103375082,7.2706,123.95,123.87,10.12]
[1767103375788,0.05544664,123.92,123.84,17.3964]
[1767103375991,95.46,123.94,123.85,10.12]
[1767103376693,7.2716,123.93,123.85,10.12]
[1767103376883,7.2716,123.93,123.88,0.06013217]
[1767103376884,0.05831165,123.9,123.88,0.06013217]
[1767103377595,0.05831165,123.9,123.88,0.00013217]
[1767103377996,0.05831165,123.9,123.82,10.12]
[1767103378188,95.46,123.91,123.82,10.12]
[1767103378494,113.125,123.92,123.82,10.12]
[1767103378694,95.46,123.91,123.82,10.12]
[1767103378893,0.0597817,123.88,123.85,0.06136542]
[1767103380295,0.0597817,123.88,123.85,0.06136542]
[1767103380689,7.3344817,123.88,123.85,0.06136542]
[1767103380893,95.46,123.87,123.79,10.12]
[1767103381195,113.2198817,123.88,123.79,10.12]
[1767103381196,95.46,123.86,123.79,10.12]
[1767103381700,102.7357,123.86,123.79,10.12]
[1767103381988,0.05760555,123.84,123.81,0.0590369]
[1767103382306,102.7335,123.9,123.82,10.03]
[1767103382899,122.94068339,123.93,123.82,10.03]
[1767103382900,95.46,123.93,123.82,10.03]
[1767103383098,0.05200387,123.89,123.86,0.06200623]
[1767103383399,0.05200387,123.89,123.86,0.05490867]
[1767103387504,95.46,123.92,123.86,10.08490867]
[1767103388192,113.1035,123.94,123.86,10.08490867]
[1767103388394,208.5635,123.94,123.86,10.03]
[1767103388700,0.06057695,123.91,123.89,0.05702596]
[1767103391505,0.06057695,123.91,123.86,10.03]
[1767103391995,7.33337695,123.91,123.86,10.03]
[1767103392293,7.33337695,123.91,123.84,10.03]
[1767103392499,0.05152018,123.89,123.86,0.06171798]
[1767103394100,0.05152018,123.89,123.82,10.03]
[1767103394713,7.32542018,123.89,123.82,10.03]
[1767103395205,7.32542018,123.89,123.84,0.05922859]
[1767103395807,7.32542018,123.89,123.84,10.08922859]
[1767103396800,0.05152018,123.89,123.84,10.08922859]
[1767103397304,119.22772739,123.85,123.71,24.72497581]
[1767103397609,113.2405,123.79,123.71,10.89]
[1767103397802,208.7005,123.79,123.71,10.89]
[1767103398108,95.46,123.78,123.71,10.89]
[1767103398502,0.05863059,123.76,123.73,0.03078766]
[1767103400715,0.05863059,123.76,123.68,10.89]